bitfinex-derivatives/quotes_SOLF0:USTF0_20250606
["timestamp","ask_amount","ask_price","bid_price","bid_amount"]
[1749226897464,46.85030644,151.08,150.99,10.0]
[1749226897665,12.21030644,151.06,150.99,10.0]
[1749226898167,6.6163,151.03,151.01,0.04412945]
[1749226898367,0.04315547,151.04,151.01,0.04412945]
[1749226898768,0.04315547,151.04,151.02,6.6164]
[1749226900264,0.04315547,151.04,151.01,0.04412945]
[1749226900462,34.64,151.09,151.02,12.21030644]
[1749226900663,41.2534,151.09,151.05,12.21030644]
[1749226900971,34.64,151.12,151.05,12.21030644]
[1749226901468,0.04192983,151.1,151.07,0.04449319]
[1749226901870,6.65512983,151.1,151.07,0.04449319]
[1749226902570,6.6135,151.09,151.07,0.04449319]
[1749226902772,0.04192983,151.1,151.07,0.04449319]
[1749226903370,6.6138,151.08,151.07,0.04449319]
[1749226904568,0.04192983,151.1,151.07,6.65829319]
[1749226905273,0.04192983,151.1,151.07,0.04449319]
[1749226906267,6.65502983,151.1,151.07,0.04449319]
[1749226906468,0.04192983,151.1,151.07,0.04449319]
[1749226906872,0.04192983,151.1,151.09,6.6134]
[1749226907068,0.04192983,151.1,151.08,12.21030644]
[1749226908072,0.04192983,151.1,151.09,6.6134]
[1749226909076,0.04192983,151.1,151.09,16.6134]
[1749226911279,0.04192983,151.1,151.09,24.75078947]
[1749226912576,6.6113,151.14,151.09,18.13738947]
[1749226912773,6.6113,151.14,151.11,8.13738947]
[1749226912973,6.6113,151.14,151.11,14.74958947]
[1749226913579,0.04215161,151.14,151.12,6.6117]
[1749226913780,0.04215161,151.14,151.11,8.18490908]
[1749226913982,6.6119,151.13,151.11,8.18490908]
[1749226914586,6.6119,151.13,151.11,0.04751961]
[1749226914786,6.6121,151.12,151.11,0.04751961]
[1749226915178,6.6119,151.13,151.11,0.04751961]
[1749226915980,6.6121,151.12,151.11,0.04751961]
[1749226916280,14.74948947,151.12,151.11,0.04751961]
[1749226919994,8.13738947,151.12,151.11,0.04751961]
[1749226920196,8.17954108,151.14,151.11,0.04751961]
[1749226920390,6.6119,151.13,151.11,0.04751961]
[1749226920692,8.17954108,151.14,151.11,0.04751961]
[1749226922392,6.6121,151.12,151.11,0.04751961]
[1749226923796,6.6121,151.12,151.11,10.04751961]
[1749226925996,8.17954108,151.14,151.11,10.04751961]
[1749226926396,6.6116,151.13,151.11,10.04751961]
[1749226926596,8.17954108,151.14,151.11,10.04751961]
[1749226926796,12.9034257,151.14,151.11,10.04751961]
[1749226927097,6.612,151.12,151.11,10.04751961]
[1749226928591,6.612,151.12,151.11,1.961e-05]
[1749226928791,4.73128705,151.12,151.06,34.64]
[1749226928991,8.13738947,151.1,151.03,39.0266]
[1749226929194,8.13738947,151.1,151.05,8.8962]
[1749226929390,6.6136,151.09,151.05,2.2815]
[1749226929598,6.6136,151.09,151.05,8.8964]
[1749226929800,0.04598083,151.09,151.05,8.94348443]
[1749226929997,6.65958083,151.09,151.05,8.94348443]
[1749226930298,6.65958083,151.09,151.05,2.32858443]
[1749226930689,6.6138,151.08,151.05,2.32858443]
[1749226930994,6.6138,151.08,151.05,12.32858443]
[1749226931797,6.65948083,151.09,151.05,12.32858443]
[1749226932211,0.04598083,151.09,151.05,12.32858443]
[1749226932399,0.04598083,151.09,151.06,8.13738947]
[1749226932803,0.04598083,151.09,151.07,6.6141]
[1749226933296,0.04598083,151.09,151.08,6.6138]
[1749226933892,0.04598083,151.09,151.07,6.614]
[1749226934803,6.65938083,151.09,151.07,6.614]
[1749226935599,6.65938083,151.09,151.06,6.6145]
[1749226935905,6.65938083,151.09,151.05,12.32858443]
[1749226936602,6.65938083,151.09,151.06,6.6142]
[1749226936905,0.04598083,151.09,151.05,12.32858443]
[1749226937204,4.78458918,151.09,151.05,12.32858443]
[1749226937502,4.785423,151.09,151.05,18.94338443]
[1749226937702,0.04598083,151.09,151.05,12.32858443]
[1749226938102,6.65968083,151.09,151.06,6.6144]
[1749226941004,0.04598083,151.09,151.07,6.6142]
[1749226941410,4.76900623,151.08,151.07,6.6142]
[1749226941601,0.04598083,151.09,151.08,6.6138]
[1749226941904,4.76893937,151.14,151.08,8.13738947]
[1749226942102,11.38083937,151.13,151.1,6.6126]
[1749226942302,4.76893863,151.12,151.08,8.13738947]
[1749226942503,4.76893863,151.11,151.08,8.13738947]
[1749226942700,4.76893863,151.1,151.08,6.65718327]
[1749226943009,4.76909293,151.09,151.08,0.04358327]
[1749226943202,4.76909293,151.09,151.08,6.65738327]
[1749226943505,4.76949335,151.09,151.08,6.65738327]
[1749226943702,4.75876946,151.09,151.08,6.65738327]
[1749226943904,0.0442433,151.11,151.08,6.65738327]
[1749226944105,4.75876676,151.1,151.08,0.04358327]
[1749226944305,0.0442433,151.11,151.08,0.04358327]
[1749226944507,12.89466365,151.1,151.08,0.04358327]
[1749226944703,4.75727418,151.09,151.08,0.04358327]
[1749226945397,11.37066762,151.09,151.08,0.04358327]
[1749226945605,6.6134,151.09,151.08,0.04358327]
[1749226945904,11.37136122,151.09,151.08,0.04358327]
[1749226946305,4.75796122,151.09,151.08,0.04358327]
[1749226947107,4.75835187,151.09,151.08,0.04358327]
[1749226947309,6.6131,151.1,151.08,0.04358327]
[1749226947510,11.37162571,151.09,151.08,0.04358327]
[1749226947712,4.76358866,151.09,151.08,0.04358327]
[1749226947911,0.0442433,151.11,151.08,8.18097274]
[1749226948107,4.76429415,151.1,151.09,6.6134]
[1749226948706,0.0442433,151.11,151.1,6.6129]
[1749226949004,36.845,151.18,151.1,8.13738947]
[1749226949210,36.845,151.18,151.08,34.62358327]
[1749226949211,36.845,151.18,151.12,8.13738947]
[1749226949509,8.13738947,151.17,151.1,8.13738947]
[1749226950113,0.04296057,151.15,151.12,0.04949131]
[1749226950808,0.04296057,151.15,151.12,8.18688078]
[1749226951114,34.58,151.22,151.12,8.18688078]
[1749226951115,6.6087,151.2,151.14,8.13738947]
[1749226951308,34.58,151.22,151.16,8.13738947]
[1749226951615,34.58,151.22,151.18,6.609]
[1749226952111,34.61881894,151.22,151.18,0.04547793]
[1749226953307,6.6084,151.21,151.18,0.04547793]
[1749226953706,34.61881894,151.22,151.18,6.65477793]
[1749226953907,34.61881894,151.22,151.18,0.04547793]
[1749226954206,34.61881894,151.22,151.18,10.04547793]
[1749226954506,6.6084,151.21,151.18,10.04547793]
[1749226955004,41.22671894,151.22,151.18,16.65487793]
[1749226955204,34.61881894,151.22,151.18,16.65487793]
[1749226955912,41.22671894,151.22,151.18,16.65487793]
[1749226956707,41.22671894,151.22,151.18,10.04547793]
[1749226956913,34.61881894,151.22,151.19,6.6089]
[1749226957114,0.03881894,151.22,151.18,18.1828674]
[1749226957414,0.03881894,151.22,151.21,6.6081]
[1749226958908,13.2039,151.36,151.2,42.49738947]
[1749226959110,6.6049,151.29,151.24,8.13738947]
[1749226959510,415.2,151.32,151.24,8.13738947]
[1749226959714,8.13738947,151.31,151.24,8.13738947]
[1749226959914,8.13738947,151.31,151.26,0.04473259]
[1749226960214,415.2,151.32,151.26,0.04473259]
[1749226960414,34.36,151.32,151.26,8.18212206]
[1749226960717,34.36,151.32,151.28,8.13738947]
[1749226961317,40.9635,151.32,151.28,8.13738947]
[1749226961510,34.36,151.32,151.28,8.13738947]
[1749226961713,2.2145,151.34,151.28,6.6049]
[1749226962011,6.94530072,151.34,151.29,0.05000932]
[1749226962411,6.6037,151.32,151.29,0.05000932]
[1749226962812,6.93245569,151.34,151.29,0.05000932]
[1749226963211,6.604,151.31,151.29,0.05000932]
[1749226964013,6.93246512,151.34,151.29,0.05000932]
[1749226964312,7.0039252,151.34,151.29,0.05000932]
[1749226964511,6.6038,151.31,151.29,0.05000932]
[1749226964817,8.13738947,151.33,151.29,0.05000932]
[1749226965317,6.6042,151.3,151.29,0.05000932]
[1749226969023,6.6042,151.3,151.29,10.05000932]
[1749226971015,2.2145,151.34,151.29,10.05000932]
[1749226971523,6.6037,151.32,151.29,10.05000932]
[1749226971726,8.13738947,151.33,151.29,10.05000932]
[1749226971922,6.604,151.31,151.29,10.05000932]
[1749226972625,6.6035,151.32,151.29,10.05000932]
[1749226972922,10.35188947,151.34,151.29,10.05000932]
[1749226973512,6.604,151.31,151.29,10.05000932]
[1749226975123,6.6034,151.32,151.29,10.05000932]
[1749226975727,10.35188947,151.34,151.29,10.05000932]
[1749226976229,6.6041,151.31,151.29,10.05000932]
[1749226976519,10.35188947,151.34,151.29,10.05000932]
[1749226978230,8.13738947,151.32,151.29,10.05000932]
[1749226979127,4.75821737,151.34,151.29,10.05000932]
[1749226979332,6.6035,151.32,151.29,10.05000932]
[1749226980230,6.6031,151.33,151.29,16.65450932]
[1749226980434,34.36,151.35,151.29,18.18739879]
[1749226980630,34.36,151.35,151.31,8.13738947]
[1749226980839,6.6015,151.37,151.33,6.6027]
[1749226981039,49.03438947,151.38,151.33,6.64747641]
[1749226981335,6.6018,151.36,151.33,0.04477641]
[1749226981535,40.897,151.38,151.33,0.04477641]
[1749226983039,6.602,151.35,151.33,0.04477641]
[1749226983233,40.897,151.38,151.33,0.04477641]
[1749226983538,40.897,151.38,151.33,6.64757641]
[1749226983733,6.6016,151.36,151.33,6.64757641]
[1749226983929,40.897,151.38,151.33,0.04477641]
[1749226984134,43.1928,151.38,151.34,6.6022]
[1749226984332,4.3719,151.42,151.37,8.13738947]
[1749226984536,34.26,151.44,151.38,0.04759529]
[1749226984929,12.88698761,151.43,151.38,0.04759529]
[1749226985436,8.13738947,151.43,151.38,0.04759529]
[1749226985743,6.5996,151.41,151.38,0.04759529]
[1749226985942,12.88698992,151.43,151.38,0.04759529]
[1749226986136,6.6,151.4,151.38,0.04759529]
[1749226986336,34.26,151.44,151.38,0.04759529]
[1749226986744,6.5996,151.41,151.38,0.04759529]
[1749226987743,6.5998,151.4,151.38,0.04759529]
[1749226987943,8.13738947,151.43,151.38,0.04759529]
[1749226988239,15.4542766,151.43,151.38,0.04759529]
[1749226988544,4.77303863,151.43,151.38,0.04759529]
[1749226988846,34.24,151.47,151.41,8.13738947]
[1749226989039,2.2188,151.49,151.43,8.13738947]
[1749226989338,6.5966,151.48,151.45,8.13738947]
[1749226989538,7.34250109,151.49,151.42,0.04916798]
[1749226989733,8.13738947,151.46,151.42,0.04916798]
[1749226990137,42.37738947,151.46,151.42,0.04916798]
[1749226990540,6.5981,151.44,151.42,0.04916798]
[1749226990736,4.78775439,151.45,151.42,0.04916798]
[1749226990945,42.37738947,151.46,151.42,0.04916798]
[1749226991145,4.78889561,151.45,151.42,0.04916798]
[1749226991339,42.37738947,151.46,151.42,0.04916798]
[1749226991642,6.5985,151.43,151.42,0.04916798]
[1749226991947,8.13738947,151.43,151.36,42.37738947]
[1749226992146,17.21071749,151.45,151.38,8.13738947]
[1749226992446,6.5984,151.44,151.38,8.13738947]
[1749226992748,11.36582802,151.44,151.39,6.6002]
[1749226992936,0.04916799,151.43,151.4,0.04792071]
[1749226993142,0.04916799,151.43,151.4,6.64742071]
[1749226993539,0.04916799,151.43,151.4,14.78481018]
[1749226994549,0.04916799,151.43,151.4,6.64742071]
[1749226994950,0.04916799,151.43,151.4,16.64742071]
[1749226995146,4.84658622,151.43,151.4,16.64742071]
[1749226995445,0.04916799,151.43,151.4,16.64742071]
[1749226995750,4.85424613,151.43,151.4,16.64742071]
[1749226995951,4.85424613,151.43,151.4,10.04792071]
[1749226996251,6.5994,151.41,151.4,10.04792071]
[1749226996949,11.39451761,151.41,151.4,10.04792071]
[1749226997139,6.5994,151.41,151.4,10.04792071]
[1749226997346,14.73648947,151.42,151.4,10.04792071]
[1749226997647,12.92194614,151.42,151.4,10.04792071]
[1749226998060,4.78455667,151.42,151.4,10.04792071]
[1749226998350,4.78455667,151.41,151.4,10.04792071]
[1749226998550,4.78455667,151.42,151.4,10.04792071]
[1749226998850,4.78455667,151.41,151.4,10.04792071]
[1749226999155,11.38365667,151.42,151.4,10.04792071]
[1749226999551,4.78455667,151.41,151.4,10.04792071]
[1749226999948,11.38365667,151.42,151.4,10.04792071]
[1749227000146,4.78455667,151.41,151.4,10.04792071]
[1749227000455,11.3906332,151.41,151.4,10.04792071]
[1749227001050,4.7912332,151.41,151.4,10.04792071]
[1749227001251,11.3904332,151.42,151.4,10.04792071]
[1749227001544,4.7912332,151.41,151.4,10.04792071]
[1749227001745,11.3906332,151.41,151.4,10.04792071]
[1749227001947,6.5994,151.41,151.4,10.04792071]
[1749227002149,4.79144634,151.41,151.4,10.04792071]
[1749227002346,7.37891806,151.41,151.4,10.04792071]
[1749227002549,4.79144634,151.41,151.4,10.04792071]
[1749227002851,22.11176523,151.41,151.4,10.04792071]
[1749227003057,22.11176523,151.41,151.4,6.49226232]
[1749227003647,22.11176523,151.41,151.4,3.01826232]
[1749227003847,6.6013,151.37,151.33,43.0537]
[1749227004054,0.04818478,151.37,151.33,36.49774829]
[1749227004254,0.04818478,151.37,151.33,34.28674829]
[1749227004449,0.04818478,151.37,151.33,0.04674829]
[1749227004657,6.6018,151.36,151.33,0.04674829]
[1749227005459,8.18557425,151.37,151.33,0.04674829]
[1749227005654,7.37852332,151.36,151.33,0.04674829]
[1749227005852,8.18557425,151.37,151.33,0.04674829]
[1749227006052,2.58122004,151.36,151.33,0.04674829]
[1749227006261,8.18557425,151.37,151.33,10.04674829]
[1749227006453,2.58127988,151.36,151.33,10.04674829]
[1749227006751,8.18557425,151.37,151.33,10.04674829]
[1749227006752,7.37041223,151.35,151.33,10.04674829]
[1749227006952,6.6024,151.34,151.33,10.04674829]
[1749227007263,11.39156019,151.34,151.33,10.04674829]
[1749227007457,6.6024,151.34,151.33,10.04674829]
[1749227007653,13.94496263,151.34,151.33,10.04674829]
[1749227007859,6.6024,151.34,151.33,10.04674829]
[1749227008253,9.18228971,151.34,151.33,10.04674829]
[1749227008453,6.6024,151.34,151.33,10.04674829]
[1749227008749,9.18228971,151.34,151.33,10.04674829]
[1749227009354,9.18298111,151.34,151.33,10.04674829]
[1749227009550,6.6024,151.34,151.33,10.04674829]
[1749227009751,9.18296615,151.34,151.33,10.04674829]
[1749227010259,9.18319202,151.34,151.33,10.04674829]
[1749227010458,6.6021,151.35,151.33,10.04674829]
[1749227010656,12.92967981,151.37,151.33,10.04674829]
[1749227010854,2.58132401,151.36,151.33,10.04674829]
[1749227011053,2.58132401,151.35,151.33,10.04674829]
[1749227011254,6.6022,151.35,151.33,10.04674829]
[1749227011474,2.58132401,151.36,151.33,10.04674829]
[1749227011759,2.61487219,151.37,151.34,8.13738947]
[1749227011967,0.04818478,151.37,151.36,8.13738947]
[1749227012265,34.24,151.41,151.36,8.13738947]
[1749227012462,414.46,151.44,151.39,8.13738947]
[1749227012668,7.29552401,151.43,151.39,8.13738947]
[1749227012866,9.16394316,151.42,151.39,8.13738947]
[1749227013067,6.599,151.42,151.39,8.13738947]
[1749227013268,6.64355765,151.42,151.39,8.18549626]
[1749227013466,0.04455765,151.42,151.39,14.78549626]
[1749227013669,2.61129312,151.42,151.39,8.18549626]
[1749227013972,2.61129312,151.42,151.4,6.5995]
[1749227014375,0.04455765,151.42,151.41,8.13738947]
[1749227014565,0.04455765,151.42,151.41,14.73678947]
[1749227014766,34.74,151.47,151.41,14.73678947]
[1749227014972,6.5985,151.43,151.41,8.13738947]
[1749227015273,4.72455946,151.45,151.4,12.15557688]
[1749227015468,2.56830839,151.44,151.42,18.75437688]
[1749227015669,2.56823051,151.45,151.42,18.75437688]
[1749227015876,11.32195946,151.46,151.42,18.75437688]
[1749227016069,2.568695,151.45,151.43,6.5983]
[1749227016374,382.4484,151.51,151.43,6.5983]
[1749227016375,34.74,151.49,151.43,6.5983]
[1749227016577,7.32025164,151.48,151.44,0.05066427]
[1749227016877,4.72698833,151.48,151.44,0.05066427]
[1749227017071,2.59317172,151.47,151.44,0.05066427]
[1749227017269,34.74,151.49,151.44,0.05066427]
[1749227017470,7.38385206,151.48,151.44,0.05066427]
[1749227017666,2.59301708,151.47,151.44,0.05066427]
[1749227017874,2.59301708,151.46,151.44,0.05066427]
[1749227018072,4.79083498,151.48,151.44,10.05066427]
[1749227018270,2.59614042,151.47,151.44,10.05066427]
[1749227018475,34.74,151.49,151.44,10.05066427]
[1749227018679,2.59610083,151.48,151.44,16.64836427]
[1749227018866,2.59610716,151.47,151.44,16.64836427]
[1749227019071,11.39182653,151.48,151.44,16.64836427]
[1749227019271,2.59469997,151.47,151.44,16.64836427]
[1749227019470,11.39182653,151.48,151.44,16.64836427]
[1749227019672,2.59223658,151.47,151.44,16.64836427]
[1749227019975,4.82152216,151.48,151.44,16.64836427]
[1749227020169,6.5963,151.48,151.44,16.64836427]
[1749227020364,2.59223607,151.47,151.44,16.64836427]
[1749227020569,6.5968,151.47,151.44,10.05066427]
[1749227021176,2.59448307,151.46,151.44,10.05066427]
[1749227021480,11.41802208,151.48,151.44,10.05066427]
[1749227021481,2.6043682,151.47,151.45,12.15557688]
[1749227021777,6.5957,151.5,151.46,6.5972]
[1749227022167,14.02314727,151.49,151.46,6.5972]
[1749227022371,2.60400645,151.48,151.46,6.5972]
[1749227022677,2.60400645,151.47,151.46,6.5972]
[1749227023073,2.60400645,151.47,151.44,12.23566427]
[1749227023278,7.44262592,151.46,151.44,10.05066427]
[1749227023476,7.4427204,151.45,151.44,10.05066427]
[1749227023679,9.20700295,151.45,151.44,10.05066427]
[1749227023878,6.5976,151.45,151.44,10.05066427]
[1749227024078,9.20736556,151.45,151.44,10.05066427]
[1749227024281,2.60976556,151.45,151.44,10.05066427]
[1749227024577,7.4430588,151.45,151.44,10.05066427]
[1749227024876,2.60976556,151.45,151.44,10.05066427]
[1749227025372,2.60954139,151.45,151.44,10.05066427]
[1749227025570,2.60959694,151.45,151.44,10.05066427]
[1749227026070,2.60954444,151.45,151.44,16.64876427]
[1749227026273,34.74,151.5,151.44,10.05066427]
[1749227026573,7.4581266,151.49,151.46,6.597]
[1749227026779,7.4581266,151.48,151.46,6.597]
[1749227026979,2.60925496,151.47,151.46,6.597]
[1749227027370,2.60817828,151.47,151.45,12.15557688]
[1749227027570,34.74,151.5,151.45,12.15557688]
[1749227027772,7.45451675,151.49,151.45,12.15557688]
[1749227027974,2.60726883,151.48,151.46,6.5968]
[1749227028170,6.5964,151.48,151.44,44.79066427]
[1749227028375,2.60834913,151.47,151.44,10.05066427]
[1749227028584,7.4462046,151.46,151.44,10.05066427]
[1749227028782,2.60834913,151.45,151.44,10.05066427]
[1749227028982,2.60824916,151.45,151.44,10.05066427]
[1749227029380,6.5973,151.46,151.44,10.05066427]
[1749227029578,2.60834033,151.45,151.44,10.05066427]
[1749227030782,11.43422539,151.47,151.44,10.05066427]
[1749227030978,2.60788308,151.46,151.44,10.05066427]
[1749227031179,2.60788308,151.45,151.44,10.05066427]
[1749227031679,2.60788308,151.46,151.44,10.05066427]
[1749227031984,11.43309957,151.48,151.44,10.05066427]
[1749227032177,2.60751949,151.47,151.44,10.05066427]
[1749227032377,4.83660686,151.49,151.44,10.05066427]
[1749227032578,34.74,151.5,151.44,10.05066427]
[1749227032784,2.61008446,151.49,151.45,6.5975]
[1749227032985,2.61009025,151.48,151.45,6.5975]
[1749227033186,2.61013518,151.47,151.45,6.5975]
[1749227033487,11.43800248,151.49,151.45,6.5975]
[1749227033691,2.61003087,151.48,151.44,10.05066427]
[1749227033886,2.61003087,151.47,151.44,10.05066427]
[1749227034188,4.84190248,151.49,151.45,12.15557688]
[1749227034483,2.60886215,151.48,151.45,12.15557688]
[1749227034691,34.74,151.5,151.46,6.597]
[1749227034884,7.44296989,151.49,151.45,12.15557688]
[1749227035083,2.60886215,151.48,151.45,12.15557688]
[1749227035285,4.83340402,151.52,151.45,12.15557688]
[1749227035487,7.44176923,151.51,151.45,12.15557688]
[1749227035683,7.44176923,151.5,151.45,18.75297688]
[1749227035884,6.5966,151.48,151.45,12.15557688]
[1749227036186,4.83214201,151.51,151.44,63.52414115]
[1749227036388,7.44028847,151.5,151.44,56.92624115]
[1749227036689,2.60813927,151.49,151.44,56.92624115]
[1749227036884,2.60813927,151.48,151.44,63.52424115]
[1749227037084,6.5968,151.48,151.44,63.52424115]
[1749227037786,6.5961,151.49,151.45,6.5976]
[1749227037982,2.6133437,151.48,151.45,6.5976]
[1749227038184,179.21817435,151.53,151.45,6.5976]
[1749227038383,6.5961,151.49,151.45,6.5976]
[1749227038590,2.61352278,151.48,151.44,56.92624115]
[1749227038784,2.61341016,151.5,151.44,56.92624115]
[1749227039091,6.5965,151.48,151.44,63.52414115]
[1749227039388,9.20992742,151.48,151.44,63.52414115]
[1749227039587,6.5965,151.48,151.44,63.52414115]
[1749227039989,6.5969,151.47,151.44,63.52414115]
[1749227040291,6.5969,151.47,151.44,56.92624115]
[1749227041194,6.5976,151.45,151.44,10.05066427]
[1749227043788,6.5974,151.46,151.44,10.05066427]
[1749227044497,2.60771366,151.47,151.44,10.05066427]
[1749227044691,4.83350225,151.48,151.44,10.05066427]
[1749227044884,2.60771366,151.47,151.44,16.64846427]
[1749227045088,34.72,151.49,151.44,16.64846427]
[1749227045285,4.83350225,151.48,151.44,16.64846427]
[1749227045485,2.60771366,151.47,151.44,10.05066427]
[1749227045691,2.60781736,151.46,151.44,10.05066427]
[1749227045893,4.8335147,151.48,151.44,10.05066427]
[1749227046094,2.60768333,151.47,151.44,10.05066427]
[1749227046293,2.60768333,151.48,151.44,10.05066427]
[1749227046504,34.72,151.49,151.44,10.05066427]
[1749227046698,9.20376999,151.48,151.44,16.64856427]
[1749227046894,6.5966,151.48,151.44,16.64856427]
[1749227047199,34.64,151.52,151.44,22.20672382]
[1749227047401,7.44004161,151.51,151.46,0.04536026]
[1749227047707,9.20268779,151.5,151.46,6.64216026]
[1749227047887,2.60718779,151.49,151.46,6.64216026]
[1749227048088,6.5955,151.5,151.46,0.04536026]
[1749227048297,2.60652683,151.49,151.46,0.04536026]
[1749227048495,6.5955,151.5,151.47,6.5965]
[1749227048794,4.83322382,151.51,151.46,0.04536026]
[1749227048994,2.60726473,151.5,151.46,0.04536026]
[1749227049191,6.5966,151.48,151.46,0.04536026]
[1749227050295,4.83264829,151.5,151.46,0.04536026]
[1749227050602,34.64,151.52,151.47,12.15605955]
[1749227050800,9.20389056,151.51,151.47,18.75275955]
[1749227051014,2.60869056,151.5,151.47,12.15605955]
[1749227051198,4.83545431,151.54,151.47,14.42445955]
[1749227051391,6.5953,151.51,151.47,14.42445955]
[1749227051597,4.83545431,151.54,151.49,12.15605955]
[1749227051798,7.4435516,151.53,151.5,0.04393043]
[1749227052004,9.20269729,151.52,151.5,0.04393043]
[1749227052200,2.2142,151.59,151.51,12.15605955]
[1749227052501,4.83488591,151.58,151.53,12.19995536]
[1749227052706,4.83488591,151.57,151.53,12.19995536]
[1749227052901,4.83488591,151.58,151.53,0.04389581]
[1749227053102,6.5937,151.54,151.53,0.04389581]
[1749227053303,11.42858591,151.54,151.53,0.04389581]
[1749227053906,11.44974309,151.54,151.53,0.04389581]
[1749227054205,23.60580264,151.54,151.53,9.581e-05]
[1749227054512,22.33043937,151.54,151.46,2.2339]
[1749227054703,4.85609374,151.53,151.46,2.2339]
[1749227055005,6.5958,151.5,151.46,2.2339]
[1749227055303,0.04711613,151.5,151.46,2.27698147]
[1749227055507,4.85609374,151.49,151.46,0.04308147]
[1749227055703,12.20317568,151.5,151.46,0.04308147]
[1749227055906,6.5968,151.47,151.46,0.04308147]
[1749227056406,11.46431015,151.47,151.46,0.04308147]
[1749227056906,6.5968,151.47,151.46,0.04308147]
[1749227057111,11.46486829,151.47,151.46,0.04308147]
[1749227057405,6.5968,151.47,151.46,0.04308147]
[1749227057606,4.86806829,151.47,151.46,0.04308147]
[1749227058310,4.87345026,151.49,151.46,0.04308147]
[1749227058509,4.87346017,151.48,151.46,0.04308147]
[1749227058705,0.04711613,151.5,151.47,6.5968]
[1749227059004,4.87624273,151.49,151.46,0.04308147]
[1749227059210,4.87624273,151.48,151.47,10.0]
[1749227059408,4.87625815,151.48,151.47,10.0]
[1749227060017,11.47255815,151.48,151.47,10.0]
[1749227060316,63.62593522,151.48,151.47,2.72e-06]
[1749227060508,63.62963522,151.48,151.39,34.64]
[1749227060713,12.15605955,151.45,151.39,34.64]
[1749227061017,12.15605955,151.43,151.36,34.64]
[1749227061313,10.23357567,151.42,151.35,4.511]
[1749227061510,6.6006,151.39,151.37,0.04158962]
[1749227061910,0.04936898,151.4,151.37,0.04158962]
[1749227062204,4.87908817,151.39,151.37,0.04158962]
[1749227062409,6.64946898,151.4,151.37,0.04158962]
[1749227062613,4.86738164,151.39,151.37,0.04158962]
[1749227062818,6.64946898,151.4,151.37,0.04158962]
[1749227063119,4.86738505,151.39,151.37,10.04158962]
[1749227063319,6.64946898,151.4,151.37,10.04158962]
[1749227063725,4.82111272,151.39,151.37,10.04158962]
[1749227063927,4.82111272,151.38,151.37,10.04158962]
[1749227064112,7.37666099,151.38,151.37,10.04158962]
[1749227064315,2.55552074,151.38,151.37,10.04158962]
[1749227064614,7.36931509,151.38,151.37,10.04158962]
[1749227064815,7.36936159,151.38,151.37,10.04158962]
[1749227065010,2.55556897,151.38,151.37,10.04158962]
[1749227065210,4.81376954,151.39,151.37,16.64268962]
[1749227065414,2.55534478,151.38,151.37,10.04158962]
[1749227065923,2.55362458,151.38,151.37,10.04158962]
[1749227066313,2.55319231,151.38,151.37,10.04158962]
[1749227066920,34.68936898,151.4,151.37,10.04158962]
[1749227067321,4.83599284,151.39,151.37,10.04158962]
[1749227067818,34.68936898,151.4,151.37,10.04158962]
[1749227068824,34.68936898,151.4,151.37,16.64248962]
[1749227069423,34.68936898,151.4,151.37,10.04158962]
[1749227069619,41.28926898,151.4,151.37,10.04158962]
[1749227069822,34.68936898,151.4,151.37,10.04158962]
[1749227070017,6.6007,151.38,151.37,10.04158962]
[1749227071019,34.68936898,151.4,151.37,10.04158962]
[1749227071020,6.6003,151.39,151.37,10.04158962]
[1749227071422,34.68936898,151.4,151.37,10.04158962]
[1749227071622,6.6006,151.39,151.37,10.04158962]
[1749227071927,34.68936898,151.4,151.37,10.04158962]
[1749227072125,6.6007,151.38,151.37,10.04158962]
[1749227073522,41.28956898,151.4,151.37,10.04158962]
[1749227073721,34.68936898,151.4,151.37,10.04158962]
[1749227073924,0.04936898,151.4,151.37,10.04158962]
[1749227074524,6.64946898,151.4,151.37,10.04158962]
[1749227075425,0.04936898,151.4,151.37,10.04158962]
[1749227075623,0.04936898,151.4,151.38,12.15605955]
[1749227075921,34.6,151.46,151.38,14.45675955]
[1749227076122,4.79551919,151.45,151.4,18.75555955]
[1749227076317,34.6,151.46,151.4,12.15605955]
[1749227076516,6.5981,151.44,151.4,18.75565955]
[1749227076936,6.63892862,151.44,151.4,18.79851764]
[1749227077327,6.5986,151.43,151.4,18.79851764]
[1749227077623,0.04082862,151.44,151.4,0.04285809]
[1749227077821,6.5994,151.41,151.4,0.04285809]
[1749227079326,6.5991,151.42,151.4,0.04285809]
[1749227079726,4.84252614,151.44,151.4,0.04285809]
[1749227079921,6.5994,151.41,151.4,0.04285809]
[1749227083832,6.6007,151.38,151.37,10.0]
[1749227086429,0.04775522,151.39,151.37,10.0]
[1749227086634,0.04775522,151.39,151.37,22.15605955]
[1749227087335,0.04775522,151.39,151.38,6.6007]
[1749227089041,4.76637273,151.45,151.38,6.6]